bitfinex-derivatives/quotes_BTCF0:USTF0_20251210
["timestamp","ask_amount","ask_price","bid_price","bid_amount"]
[1765372072944,0.09669,92155.0,92154.0,0.1040705]
[1765372073335,0.09669,92155.0,92154.0,0.1314605]
[1765372073840,0.09669,92155.0,92154.0,0.1040705]
[1765372074242,0.09669,92155.0,92154.0,0.1314605]
[1765372074430,0.09669,92155.0,92154.0,0.1040705]
[1765372074632,0.09669,92155.0,92154.0,0.0108505]
[1765372074934,0.1336305,92154.0,92153.0,0.00016281]
[1765372075542,0.1075405,92154.0,92153.0,0.09338281]
[1765372077848,0.1075405,92154.0,92153.0,0.04667281]
[1765372078154,0.1330405,92154.0,92153.0,0.00016281]
[1765372080639,0.1075405,92154.0,92153.0,0.09163281]
[1765372081752,0.1075405,92154.0,92153.0,0.04501281]
[1765372082151,0.1075405,92154.0,92153.0,0.00016281]
[1765372082453,0.1317705,92154.0,92153.0,0.00016281]
[1765372082652,0.1075405,92154.0,92153.0,0.04501281]
[1765372082955,0.1075405,92154.0,92153.0,0.09163281]
[1765372083551,0.1075405,92154.0,92153.0,0.04501281]
[1765372084253,0.6117005,92154.0,92153.0,0.09163281]
[1765372085455,0.6370305,92154.0,92153.0,0.00016281]
[1765372085639,0.6117005,92154.0,92153.0,0.09163281]
[1765372087061,0.9725005,92154.0,92153.0,0.09163281]
[1765372088250,0.9725005,92154.0,92153.0,0.00016281]
[1765372088559,0.9964805,92154.0,92153.0,0.00016281]
[1765372089057,0.9964805,92154.0,92138.0,0.02919608]
[1765372089058,0.0966925,92138.0,92137.0,0.1030724]
[1765372090061,0.08584,92138.0,92137.0,0.1030724]
[1765372092353,0.08584,92138.0,92137.0,0.14200051]
[1765372093464,0.08584,92138.0,92137.0,0.1030724]
[1765372093652,0.0108523,92139.0,92138.0,0.09222]
[1765372093859,0.08584,92139.0,92138.0,0.13119654]
[1765372094564,0.59,92141.0,92140.0,0.09222]
[1765372096457,0.59,92141.0,92140.0,0.13120516]
[1765372099561,0.59,92141.0,92140.0,0.03898516]
[1765372099762,0.0966921,92140.0,92139.0,0.03898516]
[1765372100967,0.0966921,92140.0,92139.0,0.13120516]
[1765372101664,0.3608,92144.0,92137.0,0.0108525]
[1765372101665,0.40361,92144.0,92143.0,0.0576518]
[1765372101871,0.9508,92144.0,92143.0,0.1030718]
[1765372105265,0.59,92144.0,92143.0,0.1030718]
[1765372107062,0.59,92144.0,92136.0,0.02629]
[1765372107063,0.08584,92139.0,92137.0,0.05839216]
[1765372107369,0.08584,92139.0,92133.0,0.0108529]
[1765372107370,0.08584,92136.0,92135.0,0.05839216]
[1765372107568,0.08584,92136.0,92134.0,0.05839216]
[1765372107569,0.0966927,92135.0,92134.0,0.05839216]
[1765372107870,0.08732,92132.0,92131.0,0.0292908]
[1765372108071,0.08732,92129.0,92128.0,0.02945361]
[1765372108373,0.08732,92129.0,92128.0,0.00016281]
[1765372108576,0.44812,92129.0,92128.0,0.00016281]
[1765372109759,0.3608,92129.0,92128.0,0.09711631]
[1765372110160,0.44812,92129.0,92128.0,0.09711631]
[1765372110764,0.44812,92129.0,92128.0,0.09811631]
[1765372111360,0.44812,92129.0,92128.0,0.09711631]
[1765372111571,0.40363,92129.0,92128.0,0.09711631]
[1765372112072,0.44812,92129.0,92128.0,0.09711631]
[1765372113864,0.44812,92129.0,92128.0,0.04282281]
[1765372114466,0.44812,92129.0,92128.0,0.00016281]
[1765372114778,0.44812,92129.0,92128.0,0.00116281]
[1765372115266,0.44812,92129.0,92128.0,0.00016281]
[1765372115678,0.44812,92129.0,92128.0,0.08182853]
[1765372116275,0.44812,92129.0,92128.0,0.08626281]
[1765372118079,0.4589734,92129.0,92128.0,0.04282281]
[1765372118275,0.4589734,92129.0,92128.0,0.00016281]
[1765372120277,0.4589734,92129.0,92128.0,0.03917238]
[1765372120977,0.4589734,92129.0,92128.0,0.00016281]
[1765372121281,0.08732,92129.0,92128.0,0.00016281]
[1765372125378,0.08732,92129.0,92121.0,0.41919216]
[1765372125379,0.0981744,92121.0,92120.0,0.02926453]
[1765372125577,0.5150544,92121.0,92120.0,0.02882023]
[1765372125785,0.6023744,92121.0,92120.0,0.02882023]
[1765372126280,0.6023744,92121.0,92120.0,0.06893627]
[1765372126671,0.6023744,92121.0,92120.0,0.07093627]
[1765372127175,0.6023744,92121.0,92120.0,0.11359627]
[1765372127371,0.6023744,92121.0,92120.0,0.07093627]
[1765372128266,0.6023744,92121.0,92120.0,0.04167473]
[1765372129082,0.6023744,92121.0,92120.0,0.08433473]
[1765372129681,0.6023744,92121.0,92120.0,0.04167473]
[1765372130381,0.6023744,92121.0,92120.0,0.08433473]
[1765372130571,0.6023744,92121.0,92120.0,0.15703627]
[1765372130971,0.6023744,92121.0,92120.0,0.12777473]
[1765372131374,0.59152,92121.0,92120.0,0.12777473]
[1765372132477,0.54703,92121.0,92120.0,0.12777473]
[1765372132678,0.59152,92121.0,92120.0,0.12777473]
[1765372134172,0.59152,92121.0,92120.0,0.18616689]
[1765372135577,0.6023744,92121.0,92120.0,0.18616689]
[1765372135785,0.6023744,92121.0,92120.0,0.08921239]
[1765372136284,0.6023744,92121.0,92120.0,0.07348023]
[1765372137781,0.6023744,92121.0,92120.0,0.03082023]
[1765372139576,0.6023744,92121.0,92120.0,0.11363023]
[1765372139983,0.6023744,92121.0,92120.0,0.03082023]
[1765372143493,0.6023744,92121.0,92120.0,0.11363023]
[1765372143684,0.6023744,92121.0,92120.0,0.03082023]
[1765372148393,0.0927554,92112.0,92111.0,0.00016281]
[1765372148583,0.5969954,92112.0,92111.0,0.00016281]
[1765372151293,0.5969954,92112.0,92111.0,0.00216281]
[1765372151896,0.5969954,92112.0,92111.0,0.00016281]
[1765372157194,0.5969954,92112.0,92111.0,0.07996281]
[1765372157585,0.5969954,92112.0,92111.0,0.04097281]
[1765372157899,0.5969954,92112.0,92111.0,0.00016281]
[1765372158898,0.5969954,92112.0,92111.0,0.04097281]
[1765372160002,0.5969954,92112.0,92111.0,0.00016281]
[1765372160501,0.5969954,92112.0,92111.0,0.07016953]
[1765372161406,0.9577954,92112.0,92111.0,0.10915953]
[1765372162606,0.5969954,92112.0,92111.0,0.10915953]
[1765372162799,0.9577954,92112.0,92111.0,0.10915953]
[1765372163103,0.9577954,92112.0,92111.0,0.07016953]
[1765372163403,0.9577954,92112.0,92111.0,0.02935953]
[1765372165299,0.06028,92104.0,92099.0,0.05854825]
[1765372165509,0.0711379,92091.0,92090.0,0.0010859]
[1765372165803,0.5754179,92091.0,92090.0,0.0010859]
[1765372166102,0.0711398,92075.0,92074.0,0.05854825]
[1765372166303,0.08112,92073.0,92072.0,0.05854825]
[1765372166603,0.08112,92073.0,92072.0,0.13834825]
[1765372167297,0.08112,92073.0,92072.0,0.0798]
[1765372169710,0.09198,92073.0,92072.0,0.0798]
[1765372169901,0.08112,92073.0,92072.0,0.0798]
[1765372171804,0.09198,92073.0,92072.0,0.0798]
[1765372175301,0.0782029,92084.0,92083.0,0.08941]
[1765372175694,0.5826029,92084.0,92083.0,0.08941]
[1765372176301,0.5934616,92084.0,92083.0,0.08941]
[1765372177398,0.5934616,92084.0,92083.0,0.11801871]
[1765372177801,0.5045629,92084.0,92083.0,0.11801871]
[1765372178004,0.0001629,92084.0,92083.0,0.11801871]
[1765372178211,0.0768329,92084.0,92083.0,0.11801871]
[1765372178906,0.0778329,92084.0,92083.0,0.11801871]
[1765372181306,0.0778329,92084.0,92083.0,0.47881871]
[1765372181513,0.0011629,92084.0,92083.0,0.47881871]
[1765372181901,0.0375529,92084.0,92083.0,0.47881871]
[1765372183715,0.0001629,92084.0,92083.0,0.47881871]
[1765372184911,0.0370029,92084.0,92083.0,0.47881871]
[1765372186314,0.0841616,92084.0,92083.0,0.53736696]
[1765372187014,0.0733029,92084.0,92083.0,0.53736696]
[1765372187212,0.0001629,92084.0,92083.0,0.53736696]
[1765372187903,0.0001629,92084.0,92083.0,0.54822576]
[1765372188610,0.0356529,92084.0,92083.0,0.54822576]
[1765372188809,0.0711429,92084.0,92083.0,0.54822576]
[1765372189414,0.0711429,92084.0,92083.0,0.48967751]
[1765372190508,0.0711429,92084.0,92083.0,0.49067751]
[1765372190812,0.0001629,92084.0,92083.0,0.49067751]
[1765372191417,0.0351129,92084.0,92083.0,0.49067751]
[1765372192613,0.0001629,92084.0,92083.0,0.49067751]
[1765372194805,0.0345729,92084.0,92083.0,0.49067751]
[1765372196708,0.0668229,92084.0,92083.0,0.49067751]
[1765372196908,0.0001629,92084.0,92083.0,0.49067751]
[1765372198422,0.0110216,92084.0,92083.0,0.49067751]
[1765372199419,0.0001629,92084.0,92083.0,0.49067751]
[1765372200513,0.0756816,92084.0,92083.0,0.49067751]
[1765372201323,0.0648229,92084.0,92083.0,0.49067751]
[1765372202915,0.0324929,92084.0,92083.0,0.49067751]
[1765372204824,0.0642929,92084.0,92083.0,0.49067751]
[1765372205219,0.0642929,92084.0,92083.0,0.56877116]
[1765372205726,0.0324929,92084.0,92083.0,0.56877116]
[1765372206221,0.0324929,92084.0,92083.0,0.49067751]
[1765372206624,0.0634829,92084.0,92083.0,0.49067751]
[1765372207220,0.0001629,92084.0,92083.0,0.49067751]
[1765372207617,0.4325759,92108.0,92107.0,0.08727]
[1765372207822,0.7777759,92108.0,92107.0,0.11587871]
[1765372209714,0.7777759,92108.0,92107.0,0.07282871]
[1765372210015,0.7777759,92108.0,92107.0,0.07214871]
[1765372210326,0.7777759,92108.0,92107.0,0.15421648]
[1765372210924,0.7787759,92108.0,92107.0,0.15421648]
[1765372211124,0.7787759,92108.0,92107.0,0.11514871]
[1765372215126,0.7787759,92108.0,92107.0,0.02860871]
[1765372215429,0.7787759,92108.0,92107.0,0.14443825]
[1765372219629,0.7787759,92108.0,92107.0,0.05789825]
[1765372219830,0.7787759,92108.0,92107.0,0.02860871]
[1765372220534,0.7787759,92108.0,92107.0,0.11514871]
[1765372221123,0.7787759,92108.0,92107.0,0.14443825]
[1765372222132,0.7787759,92108.0,92107.0,0.05789825]
[1765372223736,0.7787759,92108.0,92107.0,0.14443825]
[1765372224235,0.7787759,92108.0,92107.0,0.10143825]
[1765372224436,0.7787759,92108.0,92107.0,0.05789825]
[1765372226939,0.7787759,92108.0,92107.0,0.02860871]
[1765372227636,0.7787759,92108.0,92107.0,0.07214871]
[1765372227826,0.7787759,92108.0,92107.0,0.02860871]
[1765372228538,0.4179759,92108.0,92107.0,0.02860871]
[1765372228740,0.7787759,92108.0,92107.0,0.11275871]
[1765372236451,0.7787759,92108.0,92107.0,0.15182648]
[1765372237340,0.7787759,92108.0,92107.0,0.11275871]
[1765372245049,0.7787759,92108.0,92107.0,0.02860871]
[1765372245355,0.7787759,92108.0,92107.0,0.06968871]
[1765372245656,0.7787759,92108.0,92107.0,0.02860871]
[1765372249762,0.04566,92107.0,92106.0,0.05864731]
[1765372250057,0.04566,92107.0,92106.0,0.17382602]
[1765372251262,0.04666,92107.0,92106.0,0.17382602]
[1765372252565,0.40746,92107.0,92106.0,0.17382602]
[1765372255267,0.40746,92107.0,92106.0,0.11517871]
[1765372257665,0.9117,92107.0,92106.0,0.11517871]
[1765372260974,0.9107,92107.0,92106.0,0.11517871]
[1765372261174,0.9117,92107.0,92106.0,0.11517871]
[1765372261776,0.9117,92107.0,92106.0,0.03102871]
[1765372262369,0.02335,92105.0,92104.0,0.02522]
[1765372262575,0.0576167,92101.0,92100.0,0.3608]
[1765372262777,0.04676,92099.0,92098.0,0.03924179]
[1765372262974,0.04676,92099.0,92098.0,0.03199012]
[1765372263165,0.40756,92099.0,92098.0,0.06130119]
[1765372263877,0.40756,92099.0,92098.0,0.03199012]
[1765372265671,0.40756,92099.0,92098.0,0.0001629]
[1765372265873,0.06479,92088.0,92084.0,0.02931107]
[1765372266078,0.06479,92088.0,92065.0,0.07928262]
[1765372266079,0.0578994,92078.0,92077.0,0.02931107]
[1765372266276,0.5621394,92078.0,92077.0,0.03088053]
[1765372267465,0.0471,92069.0,92068.0,0.0001629]
[1765372267668,0.55134,92069.0,92068.0,0.03099622]
[1765372269176,0.55134,92069.0,92068.0,0.03199622]
[1765372269481,0.55134,92069.0,92068.0,0.03399622]
[1765372271075,0.55134,92069.0,92068.0,0.03461684]
[1765372272481,0.55134,92069.0,92068.0,0.0031629]
[1765372280982,0.55134,92069.0,92068.0,0.0842729]
[1765372281686,0.5515,92069.0,92068.0,0.0842729]
[1765372282277,0.5515,92069.0,92068.0,0.11565193]
[1765372283475,0.02355,92069.0,92068.0,0.11565193]
[1765372283678,0.0108588,92084.0,92069.0,0.0919705]
[1765372283977,0.0899888,92084.0,92083.0,0.08111]
[1765372284184,0.5943888,92084.0,92083.0,0.08111]
[1765372284888,0.5953888,92084.0,92083.0,0.08111]
[1765372285289,0.5953888,92084.0,92083.0,0.11250586]
[1765372285685,0.5953888,92084.0,92083.0,0.08111]
[1765372286393,0.5953888,92084.0,92083.0,0.11184624]
[1765372288694,0.5953888,92084.0,92083.0,0.03073624]
[1765372289091,0.5953888,92084.0,92083.0,0.07038624]
[1765372289696,0.5953488,92084.0,92083.0,0.11025624]
[1765372292300,0.5943488,92084.0,92083.0,0.11025624]
[1765372292498,0.5953488,92084.0,92083.0,0.11025624]
[1765372292694,0.5953488,92084.0,92083.0,0.03073624]
[1765372293295,0.5953488,92084.0,92083.0,0.06004731]
[1765372294997,0.5953488,92084.0,92083.0,0.03073624]
[1765372295194,0.9561488,92084.0,92083.0,0.03073624]
[1765372295395,0.9561488,92084.0,92083.0,0.07038624]
[1765372295800,0.9561488,92084.0,92083.0,0.03073624]
[1765372297406,0.9561488,92084.0,92083.0,0.11025624]
[1765372297608,0.9561488,92084.0,92083.0,0.07038624]
[1765372298010,0.9561488,92084.0,92083.0,0.11025624]
[1765372298302,0.9561488,92084.0,92083.0,0.07038624]
[1765372298507,0.9561488,92084.0,92083.0,0.03073624]
[1765372300209,0.9561488,92084.0,92083.0,0.11025624]
[1765372301008,0.9561488,92084.0,92083.0,0.03073624]
[1765372310826,0.9561488,92084.0,92083.0,0.11025624]
[1765372311312,0.9561488,92084.0,92083.0,0.03073624]
[1765372313014,0.9561488,92084.0,92083.0,0.07038624]
[1765372313717,0.9561488,92084.0,92083.0,0.11025624]
[1765372314710,0.9561488,92084.0,92083.0,0.07038624]
[1765372314904,0.5953488,92084.0,92083.0,0.07038624]
[1765372315110,0.9561488,92084.0,92083.0,0.07038624]
[1765372316519,0.9561488,92084.0,92083.0,0.11025624]
[1765372317213,0.94529,92084.0,92083.0,0.11025624]
[1765372317421,0.3618,92084.0,92083.0,0.14933513]
[1765372317718,0.86612,92084.0,92083.0,0.11025624]
[1765372318220,0.86612,92084.0,92083.0,0.16887131]
[1765372318617,0.86612,92084.0,92083.0,0.11025624]
[1765372319917,0.95031,92084.0,92083.0,0.11025624]
[1765372320717,0.94931,92084.0,92083.0,0.11025624]
[1765372321313,0.86512,92084.0,92083.0,0.11125624]
[1765372321516,0.90841,92084.0,92083.0,0.11125624]
[1765372322018,0.94931,92084.0,92083.0,0.11125624]
[1765372328224,0.94931,92084.0,92083.0,0.16979241]
[1765372328523,0.94931,92084.0,92083.0,0.16879241]
[1765372328708,0.94931,92084.0,92083.0,0.16979241]
[1765372331219,0.94931,92084.0,92083.0,0.11125624]
[1765372334922,0.9601687,92084.0,92083.0,0.11125624]
[1765372337720,0.94931,92084.0,92083.0,0.11125624]
[1765372338719,0.58851,92084.0,92083.0,0.11125624]
[1765372340419,0.58851,92084.0,92083.0,0.11225624]
[1765372340841,0.58851,92084.0,92083.0,0.11468658]
[1765372342624,0.58851,92084.0,92083.0,0.11568658]
[1765372343035,0.0001629,92087.0,92083.0,0.11568658]
[1765372343223,0.01084198,92234.0,92105.0,0.0928962]
[1765372343224,0.0954361,92106.0,92105.0,0.0928962]
[1765372343425,0.58878,92106.0,92105.0,0.12506278]
[1765372344131,0.58878,92106.0,92105.0,0.1835562]
[1765372345127,0.58878,92106.0,92105.0,0.12506278]
[1765372345322,0.58878,92106.0,92105.0,0.1835562]
[1765372345528,0.58878,92106.0,92105.0,0.1015162]
[1765372345726,0.58878,92106.0,92105.0,0.09066]
[1765372346130,0.58878,92106.0,92105.0,0.03216658]
[1765372346538,0.09624,92104.0,92103.0,0.03898736]
[1765372346838,0.0954367,92101.0,92100.0,0.03898736]
[1765372347039,0.0526372,92097.0,92096.0,0.0001629]
[1765372347239,0.0526372,92097.0,92096.0,2.9e-06]
[1765372351036,0.5567972,92097.0,92096.0,2.9e-06]
[1765372355440,0.5567972,92097.0,92096.0,0.02926111]
[1765372355843,0.0526372,92097.0,92096.0,0.02926111]
[1765372356032,0.04178,92097.0,92096.0,0.0818029]
[1765372356237,0.54594,92097.0,92096.0,0.0818029]
[1765372356636,0.54594,92097.0,92096.0,0.4426029]
[1765372356637,0.04178,92097.0,92096.0,0.4426029]
[1765372356835,0.04178,92097.0,92096.0,0.50109632]
[1765372358132,0.04178,92097.0,92096.0,0.4426029]
[1765372358543,0.04178,92097.0,92096.0,0.47352698]
[1765372358744,0.02089,92097.0,92096.0,0.5320204]
[1765372360343,0.5598563,92105.0,92104.0,0.0818]
[1765372360542,0.5598563,92105.0,92104.0,0.11272408]
[1765372361251,0.5598563,92105.0,92104.0,0.12358048]
[1765372363547,0.5598563,92105.0,92104.0,0.15281931]
[1765372363746,0.5598563,92105.0,92104.0,0.12358048]
[1765372367049,0.54896,92105.0,92104.0,0.12358048]
[1765372367846,0.04778851,92115.0,92114.0,0.0926552]
[1765372368044,0.04778851,92115.0,92114.0,0.15280083]
[1765372368045,0.55190851,92115.0,92114.0,0.15280083]
[1765372369155,0.55190851,92115.0,92114.0,0.12357928]
[1765372373662,0.04778851,92115.0,92114.0,0.12357928]
[1765372373961,0.55186851,92115.0,92114.0,0.12357928]
[1765372379559,0.55186851,92115.0,92114.0,0.16247242]
[1765372379865,0.55186851,92115.0,92114.0,0.08067242]
[1765372380062,0.55186851,92115.0,92114.0,0.16799242]
[1765372380561,0.55186851,92115.0,92114.0,0.08067242]
[1765372380761,0.55186851,92115.0,92114.0,0.12309242]
[1765372382256,0.55186851,92115.0,92114.0,0.08419928]
[1765372382460,0.55186851,92115.0,92114.0,0.03092408]
[1765372382961,0.93749851,92115.0,92114.0,0.03092408]
[1765372386067,0.91266851,92115.0,92114.0,0.03092408]
[1765372386258,0.91266851,92115.0,92114.0,0.06011968]
[1765372389268,0.91266851,92115.0,92114.0,0.03092408]
[1765372389670,0.91266851,92115.0,92114.0,0.06017193]
[1765372390172,0.91266851,92115.0,92114.0,0.03092408]
[1765372391273,0.91266851,92115.0,92114.0,0.0601756]
[1765372394576,0.91266851,92115.0,92114.0,0.03092408]
[1765372399976,0.91266851,92115.0,92114.0,0.04177928]
[1765372400177,0.91266851,92115.0,92114.0,0.03092408]
[1765372401377,0.91266851,92115.0,92114.0,0.06018932]
[1765372404281,0.91266851,92115.0,92114.0,0.0601919]
[1765372404580,0.55186851,92115.0,92114.0,0.0601919]
[1765372404776,0.91266851,92115.0,92114.0,0.0601919]
[1765372405276,0.91266851,92115.0,92114.0,0.03092408]
[1765372406668,0.91266851,92115.0,92114.0,0.06019112]
[1765372408284,0.91266851,92115.0,92114.0,0.03092408]
[1765372408776,0.91266851,92115.0,92114.0,0.06019665]
[1765372409279,0.91266851,92115.0,92114.0,0.03092408]
[1765372415183,0.55186851,92115.0,92114.0,0.03092408]
[1765372415382,0.91266851,92115.0,92114.0,0.03092408]
[1765372424681,0.40858851,92115.0,92114.0,0.12011408]
[1765372424880,0.91258851,92115.0,92114.0,0.12011408]
[1765372425282,0.91258851,92115.0,92114.0,0.1786075]
[1765372427174,0.52847851,92115.0,92114.0,0.12011408]
[1765372430898,0.52847851,92115.0,92114.0,0.12111408]
[1765372431092,0.55633851,92115.0,92114.0,0.12111408]
[1765372433893,0.55633851,92115.0,92114.0,0.12011408]
[1765372434092,0.55633851,92115.0,92114.0,0.12111408]
[1765372435484,0.52847851,92115.0,92114.0,0.12111408]
[1765372437586,0.52847851,92115.0,92114.0,0.12211408]
[1765372439798,0.52847851,92115.0,92114.0,0.20007521]
[1765372439993,0.50520851,92115.0,92114.0,0.20007521]
[1765372440389,0.56180851,92115.0,92114.0,0.19807521]
[1765372440702,0.56180851,92115.0,92114.0,0.20007521]
[1765372440996,0.56180851,92115.0,92114.0,0.56187521]
[1765372441207,0.56180851,92115.0,92114.0,0.48191408]
[1765372441390,0.56180851,92115.0,92114.0,0.48491408]
[1765372441391,0.53350851,92115.0,92114.0,0.48491408]
[1765372441591,0.56183851,92115.0,92114.0,0.48491408]
[1765372441902,0.56183851,92115.0,92114.0,0.56286339]
[1765372442893,0.56183851,92115.0,92114.0,0.48491408]
[1765372446589,0.3608,92128.0,92114.0,0.48491408]
[1765372446590,0.41782,92128.0,92127.0,0.1290037]
[1765372446794,0.38931,92128.0,92127.0,0.15992778]
[1765372446990,0.05702,92133.0,92132.0,0.1010731]
[1765372447197,0.05702,92133.0,92132.0,0.13199718]
[1765372450301,0.02851,92133.0,92132.0,0.13199718]
[1765372450508,0.05719,92133.0,92132.0,0.13199718]
[1765372451205,0.05719,92133.0,92132.0,0.19037656]
[1765372452212,0.56131,92139.0,92138.0,0.1029524]
[1765372452413,0.56131,92139.0,92138.0,0.13387648]
[1765372453106,0.5721622,92139.0,92138.0,0.13387648]
[1765372453298,0.5721622,92139.0,92138.0,0.03092408]
[1765372453796,0.5721622,92139.0,92138.0,4.08e-06]
[1765372455010,0.0108532,92131.0,92128.0,0.02919063]
[1765372456002,0.0108532,92131.0,92128.0,0.04004413]
[1765372456203,0.0108532,92131.0,92129.0,0.02919063]
[1765372457914,0.0108532,92131.0,92130.0,0.02582]
[1765372459012,0.0108532,92131.0,92130.0,0.02682]
[1765372459213,0.0108532,92131.0,92130.0,0.05601063]
[1765372461111,0.0108532,92131.0,92130.0,0.02682]
[1765372465918,0.0108532,92131.0,92130.0,0.05860987]
[1765372467211,0.0108538,92126.0,92123.0,0.00016281]
[1765372467412,0.371654,92124.0,92123.0,0.00016281]
[1765372468714,0.371654,92124.0,92123.0,0.00116281]
[1765372470812,0.45711313,92124.0,92123.0,0.00016281]
[1765372473216,0.45711313,92124.0,92123.0,0.09020281]
[1765372473711,0.45711313,92124.0,92123.0,0.00016281]
[1765372473911,0.371654,92124.0,92123.0,0.04591281]
[1765372474113,0.371654,92124.0,92123.0,0.09020281]
[1765372475420,0.371654,92124.0,92123.0,0.00016281]
[1765372478216,0.875534,92124.0,92123.0,0.00016281]
[1765372480212,0.875534,92124.0,92123.0,0.03201144]
[1765372481220,0.875534,92124.0,92123.0,0.03201654]
[1765372483524,0.875534,92124.0,92123.0,0.12205654]
[1765372483829,0.875534,92124.0,92123.0,0.03201654]
[1765372486326,0.875534,92124.0,92123.0,0.12205654]
[1765372489925,0.875534,92124.0,92123.0,0.03201654]
[1765372498838,0.875534,92124.0,92123.0,0.07635654]
[1765372501132,0.875534,92124.0,92123.0,0.03201654]
[1765372501337,0.875534,92124.0,92123.0,0.07635654]
[1765372501533,0.875534,92124.0,92123.0,0.03201654]
[1765372501738,0.875534,92124.0,92123.0,0.07635654]
[1765372502235,0.875534,92124.0,92123.0,0.12157654]
[1765372503440,0.875534,92124.0,92123.0,0.03201654]
[1765372503942,0.875534,92124.0,92111.0,0.03891772]
[1765372503943,0.0108552,92114.0,92111.0,0.03891772]
[1765372504138,0.0108552,92114.0,92104.0,0.02696]
[1765372504139,0.0108562,92105.0,92104.0,0.02696]
[1765372504336,0.0108562,92105.0,92100.0,0.02696]
[1765372504337,0.0108567,92101.0,92100.0,0.02696]
[1765372504841,0.0108567,92101.0,92100.0,0.11652]
[1765372505632,0.0108567,92101.0,92100.0,0.02696]
[1765372505949,0.0108567,92101.0,92100.0,0.0713]
[1765372506141,0.0118567,92101.0,92100.0,0.0713]
[1765372506645,0.0118567,92101.0,92100.0,0.11652]
[1765372507942,0.0128567,92101.0,92100.0,0.11652]
[1765372508535,0.0138567,92101.0,92100.0,0.11652]
[1765372508938,0.0148567,92101.0,92100.0,0.11652]
[1765372510542,0.004,92101.0,92100.0,0.11652]
[1765372510940,0.50792,92101.0,92100.0,0.11652]
[1765372511141,0.4154135,92101.0,92100.0,0.11652]
[1765372512046,0.4164135,92101.0,92100.0,0.11652]
[1765372512543,0.4174135,92101.0,92100.0,0.11652]
[1765372512741,0.4164135,92101.0,92100.0,0.11652]
[1765372513045,0.4164135,92101.0,92100.0,0.11752]
[1765372513245,0.4154135,92101.0,92100.0,0.11852]
[1765372513751,0.4154135,92101.0,92100.0,0.0733]
[1765372513752,0.5062735,92101.0,92100.0,0.0733]
[1765372513935,0.5062735,92101.0,92100.0,0.002]
[1765372514135,0.5062735,92101.0,92100.0,0.11496]
[1765372514348,0.4154135,92101.0,92100.0,0.11496]
[1765372514536,0.4608935,92101.0,92100.0,0.11496]
[1765372514736,0.5062735,92101.0,92100.0,0.11496]
[1765372515635,0.5062735,92101.0,92100.0,0.11396]
[1765372516048,0.5062735,92101.0,92100.0,0.14233062]
[1765372519040,0.5062735,92101.0,92100.0,0.02937062]
[1765372519353,0.1017178,92092.0,92090.0,0.0010859]
[1765372519549,0.4625178,92092.0,92090.0,0.0010859]
[1765372520151,0.4625178,92092.0,92091.0,0.04485281]
[1765372520352,0.4625178,92092.0,92091.0,0.08739281]
[1765372520649,0.4625178,92092.0,92091.0,0.08939281]
[1765372521851,0.4625178,92092.0,92091.0,0.09039281]
[1765372522448,0.9664778,92092.0,92091.0,0.09039281]
[1765372523753,0.95562,92092.0,92091.0,0.08839281]
[1765372524857,0.95562,92092.0,92091.0,0.08739281]
[1765372526455,0.09086,92098.0,92094.0,0.02573]
[1765372526645,0.09086,92098.0,92097.0,0.08723]
[1765372526852,0.59482,92098.0,92097.0,0.08723]
[1765372527349,0.59482,92098.0,92097.0,0.11647284]
[1765372528354,0.59482,92098.0,92097.0,0.08723]
[1765372532759,0.59482,92098.0,92097.0,0.02926201]
[1765372533654,0.59482,92098.0,92097.0,0.09229]
[1765372534049,0.09086,92098.0,92097.0,0.09229]
[1765372534251,0.59482,92098.0,92097.0,0.09229]
[1765372537263,0.59482,92098.0,92097.0,0.12172309]
[1765372538261,0.54944,92098.0,92097.0,0.12172309]
[1765372538760,0.59203,92098.0,92097.0,0.12172309]
[1765372539153,0.6028871,92098.0,92097.0,0.12172309]
[1765372539353,0.6028871,92098.0,92097.0,0.13258029]
[1765372541069,0.6028871,92098.0,92097.0,0.12172309]
[1765372545959,0.59203,92098.0,92097.0,0.12172309]
[1765372556262,0.59203,92098.0,92097.0,0.18022623]
[1765372560170,0.59203,92098.0,92097.0,0.08793623]
[1765372560368,0.59203,92098.0,92097.0,0.06852378]
[1765372560563,0.95283,92098.0,92097.0,0.05875557]
[1765372560872,0.95283,92098.0,92097.0,0.02943309]
[1765372563377,0.95283,92098.0,92091.0,0.00016281]
[1765372563378,0.08684,92092.0,92091.0,0.00016281]
[1765372563677,0.08684,92092.0,92091.0,0.0296913]
[1765372563678,0.0976978,92092.0,92091.0,0.0296913]
[1765372565476,0.0976978,92092.0,92091.0,0.0316913]
[1765372565982,0.0976978,92092.0,92091.0,0.0326913]
[1765372569277,0.4705978,92092.0,92091.0,0.0326913]
[1765372569471,0.08364,92078.0,92077.0,0.00632]
[1765372569773,0.9484,92078.0,92077.0,0.00632]
[1765372570078,0.44444,92078.0,92077.0,0.09168]
[1765372570273,0.9484,92078.0,92077.0,0.09168]
[1765372570870,0.9484,92078.0,92077.0,0.09268]
[1765372571678,0.94844,92078.0,92077.0,0.09268]
[1765372573080,0.94844,92078.0,92077.0,0.09168]
[1765372573269,0.94944,92078.0,92077.0,0.09168]
[1765372575382,0.94944,92078.0,92077.0,0.00632]
[1765372576280,0.94944,92078.0,92077.0,0.04812]
[1765372577579,0.9602994,92078.0,92077.0,0.04812]
[1765372578484,0.9602994,92078.0,92077.0,0.00632]
[1765372578683,0.9602994,92078.0,92077.0,0.04812]
[1765372579986,0.9602994,92078.0,92077.0,0.09168]
[1765372580186,0.9602994,92078.0,92077.0,0.04812]
[1765372581483,0.9602994,92078.0,92077.0,0.07828916]
[1765372582686,0.9602994,92078.0,92077.0,0.03648916]
[1765372584078,0.9602994,92078.0,92077.0,0.07828916]
[1765372586492,0.9602994,92078.0,92077.0,0.12184916]
[1765372588694,0.94948,92078.0,92077.0,0.12184916]
[1765372588895,0.94948,92078.0,92077.0,0.16093985]
[1765372589286,0.94948,92078.0,92077.0,0.12184916]
[1765372590097,0.94848,92078.0,92077.0,0.12184916]
[1765372591791,0.50404,92078.0,92077.0,0.16089107]
[1765372591989,0.50404,92078.0,92077.0,0.1803523]
[1765372592387,0.50404,92078.0,92077.0,0.12184916]
[1765372592899,0.00016291,92087.0,92086.0,0.0957685]
[1765372593088,0.50420291,92087.0,92086.0,0.12593766]
[1765372593486,0.54878291,92087.0,92086.0,0.12593766]
[1765372595296,0.59101291,92087.0,92086.0,0.12593766]
[1765372595799,0.50420291,92087.0,92086.0,0.12593766]
[1765372596005,0.00016291,92087.0,92086.0,0.12593766]
[1765372597702,0.00016291,92087.0,92086.0,0.12893766]
[1765372598201,2.91e-06,92087.0,92086.0,0.12893766]
[1765372598997,2.91e-06,92087.0,92086.0,0.60686721]
[1765372599187,2.91e-06,92087.0,92086.0,0.52893766]